Cogmind - Beta 12 @@@ ROGUE MODE // 2023.05.06 @ 12:46:56 Player: art-hropod Result: Self-destructed Performance ------------- Evolutions (2) 1000 Regions Visited (3) 600 Robots Destroyed (44) 220 Value Destroyed (868) 868 Prototype IDs (2) 40 Alien Tech Used (0) 0 Bonus (37) 37 TOTAL SCORE: 2765 Bonus ------- High Alert Combat Kills 37 Cogmind --------- Core Integrity 138/550 Matter 279/300 Energy 100/100 System Corruption 0% Temperature Cool (0) Movement Core (50) Location -8/Materials Parts ------- > --- POWER (1) -------- (None) > --- PROPULSION (4) --- (None) > --- UTILITY (4) ------ (None) > --- WEAPON (2) ------- (None) > --- INVENTORY (5) ---- Flight Unit Flight Unit Flight Unit Flight Unit Hacking Suite Peak State ------------ > --- POWER ------------ Light Deuterium Engine > --- PROPULSION ------- Aluminum Leg Aluminum Leg Aluminum Leg Aluminum Leg > --- UTILITY ---------- Heat Sink Improved Cooling System Small Storage Unit Reaction Control System > --- WEAPON ----------- Improved Medium Laser Improved Medium Laser > --- INVENTORY -------- Flight Unit Flight Unit Flight Unit Flight Unit Flight Unit Hacking Suite EMP Blaster [Rating: 23] Favorites ----------- Power Light Deuterium Engine Engine Light Deuterium Engine Propulsion Aluminum Leg Leg Aluminum Leg Utility Small Storage Unit Device Heat Sink Storage Small Storage Unit Protection Reflective Plating Weapon Improved Medium Laser Energy Gun Improved Medium Laser Ballistic Gun Light Assault Rifle Ballistic Cannon Improved Light Cannon Launcher EMP Blaster Build | -11 -10 -9 -8 ------- Run | Jun Mat Mat Mat Slots Evolved 4 | . . 2 2 Power . | . . . . Propulsion 2 | . . 2 . Utility 2 | . . . 2 Weapon . | . . . . Parts Attached 46 | 6 5 24 11 Power 8 | 1 2 4 1 Engine 8 | 1 2 4 1 Core . | . . . . Reactor . | . . . . Propulsion 18 | 2 2 10 4 Treads . | . . . . Leg 18 | 2 2 10 4 Wheel . | . . . . Hover . | . . . . Flight . | . . . . Utility 6 | 1 1 1 3 Device 4 | . 1 1 2 Storage 1 | 1 . . . Processor . | . . . . Hackware . | . . . . Protection 1 | . . . 1 Artifact . | . . . . Weapon 14 | 2 . 9 3 Energy Gun 8 | . . 6 2 Energy Cannon . | . . . . Ballistic Gun 2 | 2 . . . Ballistic Cannon 1 | . . 1 . Launcher 3 | . . 2 1 Special Weapon . | . . . . Impact Weapon . | . . . . Slashing Weapon . | . . . . Piercing Weapon . | . . . . Special Melee Weapon . | . . . . Unidentified Prototypes 2 | . . 2 . Parts Lost 19 | . 1 1 17 Power 3 | . . 1 2 Propulsion 8 | . 1 . 7 Utility 4 | . . . 4 Weapon 4 | . . . 4 Highest Loss Streak 11 | . 1 1 11 To Critical Strikes . | . . . . Average Slot Usage (%) 90 | . 86 97 82 Engine 10 | . 14 11 7 Leg 35 | . 27 41 32 Device 10 | . 2 11 16 Storage 11 | . 14 11 8 Energy Gun 12 | . . 16 15 Ballistic Gun 7 | . 28 2 . Ballistic Cannon 1 | . . 2 . Naked Turns 11 | . . . 11 Heaviest Build 22 | 12 12 20 22 Greatest Support 40 | 20 20 40 40 Greatest Overweight (x) 1 | . 1 . 1 Average Overweight (x) . | . . . . Largest Inventory Capacity 8 | 8 8 8 8 Average Capacity 7 | 7 8 8 7 Most Carried 8 | 6 8 8 8 Average Carried 7 | 3 7 7 7 Final Capacity 8 | 8 8 8 5 Final Carried 8 | 6 8 8 5 Class Distribution -------------------- 71% | Mutant 28% | Scavenger-Mutant Dominant Class ---------------- Mutant | -10/Materials Mutant | -9/Materials Mutant | -8/Materials Resources | -11 -10 -9 -8 ----------- Run | Jun Mat Mat Mat Matter Collected 738 | 242 95 294 107 Remotely . | . . . . Salvage Created 1383 | . 128 788 467 Parts 105 | . 12 64 29 Haulers Intercepted 4 | . . 4 . Recyclers Shooed 1 | . 1 . . Parts Field Recycled . | . . . . Retrieved Matter . | . . . . Parts Self-Destructed . | . . . . Prevented . | . . . . Kills | -11 -10 -9 -8 ------- Run | Jun Mat Mat Mat Combat Hostiles Destroyed 30 | . 5 16 9 Guns 26 | . 5 13 8 Cannons 1 | . . 1 . AOE 3 | . . 2 1 Classes Destroyed 11 | . 2 6 3 Worker 2 | . . 1 1 Builder 1 | . . . 1 Tunneler 1 | . . 1 . Hauler 4 | . . 4 . Recycler 1 | . . . 1 Operator 1 | . . 1 . Watcher 4 | . . 3 1 Swarmer 16 | . 3 9 4 Grunt 7 | . 2 3 2 Duelist 1 | . . . 1 Sentry 6 | . . 4 2 Best Kill Streak 10 | . 3 10 7 Combat Bots Only 6 | . 3 6 5 Max Kills in Single Turn 2 | . 1 1 2 Gunslinging . | . . . . Exploded 1 | . . 1 1 Melee . | . . . . Uniques/NPCs Destroyed . | . . . . Combat | -11 -10 -9 -8 -------- Run | Jun Mat Mat Mat Damage Taken 2681 | . 372 879 1430 Core 568 | . 83 73 412 Absorbed by Shields . | . . . . Core Remaining (%) 82 | 100 66 81 . Volleys Fired 119 | . 26 54 39 Largest 2 | . 2 2 2 Hottest 112 | . 40 112 112 Shots Fired 225 | . 52 108 65 Gun 208 | . 52 92 64 Cannon 9 | . . 9 . Launcher 8 | . . 7 1 Special . | . . . . Kinetic 65 | . 52 13 . Thermal 131 | . . 67 64 Explosive . | . . . . Electromagnetic 29 | . . 28 1 Robot Hit Streak 16 | . 8 16 11 Robot Miss Streak 4 | . 4 4 4 Penetration Max . | . . . . Secondary Targets 1 | . . 1 . Max Gunslinging Chain 1 | . . 1 . Shots Hit Robots 143 | . 36 62 45 Core Hits 73 | . 12 38 23 Critical Kills . | . . . . Critical Parts Destroyed . | . . . . Critical Strikes 10 | . . 4 6 Burn 10 | . . 4 6 Melee Attacks . | . . . . Impact . | . . . . Slashing . | . . . . Piercing . | . . . . Sneak Attacks . | . . . . Combat Hostiles . | . . . . Follow-up Attacks . | . . . . Damage Inflicted 2349 | . 261 1261 827 Guns 1923 | . 261 878 784 Cannons 100 | . . 100 . Explosions 326 | . . 283 43 Melee . | . . . . Ramming . | . . . . Kinetic 382 | . 261 121 . Thermal 1470 | . . 686 784 Explosive . | . . . . Electromagnetic 497 | . . 454 43 Impact . | . . . . Slashing . | . . . . Piercing . | . . . . Highest Corruption 1 | . . 1 . Average Corruption 1 | . . 1 . Corruption Purged . | . . . . Corruption Blocked . | . . . . Effects 3 | . . 3 . Matter Fused 2 | . . 2 . Data Loss (minor) 1 | . . 1 . Overload Shots . | . . . . Overflow Damage 9 | . . 9 . Projectiles . | . . . . Explosions 9 | . . 9 . Melee . | . . . . Knockbacks . | . . . . Impact . | . . . . Kinetic . | . . . . Secondary . | . . . . Self-Inflicted Damage . | . . . . Shots . | . . . . Rammed . | . . . . Targets Rammed . | . . . . Kicked . | . . . . Crushed . | . . . . Highest Temperature 372 | . 18 81 372 Average Temperature 52 | . 8 22 96 Received Heat Transfer 867 | . 96 213 558 Effects 1 | . . . 1 Matter Decay 1 | . . . 1 Siege Activations . | . . . . Robots Corrupted . | . . . . Combat Hostiles . | . . . . Parts Fried . | . . . . Impact Corruptions . | . . . . Robots Melted . | . . . . Combat Hostiles . | . . . . Parts Melted 15 | . . 8 7 Heat Transferred 4146 | . . 1889 2257 Parts Sabotaged . | . . . . Parts Stolen . | . . . . Parts Stripped . | . . . . Power Chain Reactions 2 | . . 2 . Missiles Intercepted . | . . . . Alert | -11 -10 -9 -8 ------- Run | Jun Mat Mat Mat Peak Influence 502 | . 170 502 441 Initial 211 | . . 71 211 Average 207 | . 86 240 298 Maximum Alert Level 2 | . . 2 2 Low Security (%) 49 | 100 100 46 . Level 1 38 | . . 39 80 Level 2 11 | . . 14 19 Level 3 . | . . . . Level 4 . | . . . . Level 5 . | . . . . High Security . | . . . . Max Security . | . . . . Squads Dispatched 5 | . 1 2 2 Investigation 2 | . 1 1 . Extermination . | . . . . Reinforcement 1 | . . 1 . Assault . | . . . . Garrison 2 | . . . 2 Intercept . | . . . . Searches Triggered . | . . . . Construction Impeded . | . . . . Haulers Reinforced . | . . . . Active Scanning Responses . | . . . . Cargo Convoy Interrupts . | . . . . Stealth | -11 -10 -9 -8 --------- Run | Jun Mat Mat Mat Distress Signals 8 | . . 4 4 Communications Jammed . | . . . . Distress Signals . | . . . . Times Spotted 58 | . 8 26 24 Peak Tracking Total 10 | . 3 4 10 Tactical Retreats 4 | . 1 . 3 Traps | -11 -10 -9 -8 ------- Run | Jun Mat Mat Mat Traps Triggered 2 | . 1 1 . Indirectly . | . . . . Trap Hack Attempts . | . . . . Triggered . | . . . . Disarmed . | . . . . Reprogrammed . | . . . . Reused . | . . . . Traps Extracted . | . . . . Installed . | . . . . Triggered . | . . . . Machines | -11 -10 -9 -8 ---------- Run | Jun Mat Mat Mat Machines Disabled 1 | . . 1 . Max in Single Turn 1 | . . 1 . Machines Repaired . | . . . . Machines Sabotaged . | . . . . Overloaded Fab Kills . | . . . . Hacking | -11 -10 -9 -8 --------- Run | Jun Mat Mat Mat Machines Accessed 7 | . 2 4 1 Terminals 7 | . 2 4 1 Fabricators . | . . . . Repair Stations . | . . . . Recycling Units . | . . . . Scanalyzers . | . . . . Garrison Access . | . . . . Total Hacks 17 | . 5 10 2 Successful 9 | . 2 5 2 Failed 8 | . 3 5 . Catastrophic 2 | . 1 1 . Database Lockouts . | . . . . Manual 17 | . 5 10 2 Terminals 17 | . 5 10 2 Fabricators . | . . . . Repair Stations . | . . . . Recycling Units . | . . . . Scanalyzers . | . . . . Garrison Access . | . . . . Terminal Hacks 2 | . . 1 1 Level Access Points 1 | . . 1 . Scanalyzer Index 1 | . . . 1 Fabricator Hacks . | . . . . Repair Station Hacks . | . . . . Recycling Unit Hacks . | . . . . Scanalyzer . | . . . . Garrison Access Hacks . | . . . . Unauthorized Hacks 7 | . 2 4 1 Terminals 7 | . 2 4 1 Botnet 6 | . 1 4 1 Operators 1 | . 1 . . Fabricators . | . . . . Repair Stations . | . . . . Recycling Units . | . . . . Scanalyzers . | . . . . Garrison Access . | . . . . Data Cores Recovered 1 | . . 1 . Used . | . . . . Hacking Detections 6 | . 2 4 . Full Trace Events 1 | . . 1 . Feedback Events . | . . . . Feedback Blocked . | . . . . Robot Schematics Acquired . | . . . . Robots Built . | . . . . Authchips . | . . . . Time . | . . . . Total Robot Build Rating . | . . . . Part Schematics Acquired . | . . . . Parts Built . | . . . . Authchips . | . . . . Time . | . . . . Total Part Build Rating . | . . . . Parts Repaired . | . . . . Time . | . . . . Parts Recycled . | . . . . Recycled Matter . | . . . . Retrieved Matter . | . . . . Retrieved Components . | . . . . Parts Scanalyzed . | . . . . Part Schematics Acquired . | . . . . Parts Damaged . | . . . . Bothacking | -11 -10 -9 -8 ------------ Run | Jun Mat Mat Mat Used RIF Installer . | . . . . Robots Hacked . | . . . . Non-combat . | . . . . Combat . | . . . . Robot Hacks Applied . | . . . . Relay Couplers Released . | . . . . Fabnet Peak Effective % . | . . . . Robots Rewired . | . . . . Allies Hacked . | . . . . Hacks Repelled . | . . . . Allies | -11 -10 -9 -8 -------- Run | Jun Mat Mat Mat Total Allies . | . . . . Largest Group . | . . . . Highest-Rated Group . | . . . . Highest-Rated Ally . | . . . . Total Orders . | . . . . Ally Attacks . | . . . . Total Damage . | . . . . Kills . | . . . . Allies Corrupted . | . . . . Allies Melted . | . . . . Intel | -11 -10 -9 -8 ------- Run | Jun Mat Mat Mat Robot Analysis Total . | . . . . Derelict Logs Recovered . | . . . . Drone Launches . | . . . . Drone Recoveries . | . . . . Exploration | -11 -10 -9 -8 ------------- Run | Jun Mat Mat Mat Turns Passed 1397 | 75 308 669 345 Spaces Moved 803 | 53 182 376 192 Core 30 | 9 . . 21 Treads . | . . . . Legs 773 | 44 182 376 171 Wheels . | . . . . Hover . | . . . . Flight . | . . . . Fastest Speed 50 | 50 120 120 50 Average Speed 117 | 108 120 120 112 Slowest Speed 190 | 120 190 120 120 Overloaded Moves . | . . . . Propulsion Burnouts . | . . . . Robots Hopped . | . . . . Cave-ins Triggered . | . . . . Exploration Rate (%) 28 | 4 35 52 24 Regions Visited 3 Branch Regions . Pre-discovered Areas . | . . . . Known Exits Taken 1 | . . 1 . Unknown Exits Taken 2 | 1 1 . . Scrap Searched . | . . . . Spaces Dug . | . . . . Terrain Destroyed 2 | . . 2 . Melee . | . . . . Projectile . | . . . . AOE 2 | . . 2 . Terrain Rammed . | . . . . Walls Destroyed . | . . . . Machines Disabled . | . . . . Actions | -11 -10 -9 -8 --------- Run | Jun Mat Mat Mat Total 1045 | 70 230 491 254 Wait 17 | . 4 9 4 Move 800 | 52 181 375 192 Hop . | . . . . Pick Up 34 | 12 7 8 7 Fast Attach 12 | . 3 8 1 Attach 17 | 6 . 3 8 Detach . | . . . . Swap 17 | . 2 13 2 Drop 29 | . 7 21 1 Fire 119 | . 26 54 39 Melee . | . . . . Ram . | . . . . Kick . | . . . . Crush . | . . . . Escape Stasis . | . . . . Rewire . | . . . . Trap . | . . . . Miscellaneous . | . . . . Route ------- -11/Junkyard -10/Materials -9/Materials (discovered 4 exits: *Mat x3 / [*Min]) -8/Materials History --------- Turn | Location | Event 3 | -11/Junkyard | Discovered new exit (range 15) 76 | -11/Junkyard | Entered Materials 317 | -10/Materials | Build established: Mutant 369 | -10/Materials | Discovered new exit (range 14) 384 | -10/Materials | Entered another Materials area 384 | -9/Materials | Evolved 2 slots: Propulsion x2 715 | -9/Materials | Discovered new exit (range 9) 1018 | -9/Materials | Identified exit to Materials 1053 | -9/Materials | Entered another Materials area 1053 | -8/Materials | Evolved 2 slots: Utility x2 1259 | -8/Materials | Lost 3 parts (1p1u1w) 1263 | -8/Materials | Garrison activated, responded to threat 1384 | -8/Materials | Core integrity fell below 50% 1398 | -8/Materials | Self-destructed Last Messages --------------- 01356_ Melee Analysis Suite melted. 01356_ L-31 Rogue destroyed. 01358_ Aluminum Leg destroyed. 01361_ W-25 Informer sends out distress signal. 01363_ Critical hit (Burn: +37). 01368_ G-47 Trooper suffers critical hit (Burn). 01368_ G-47 Trooper overheating. 01369_ G-47 Trooper heat damages Aluminum Leg. 01369_ G-47 Trooper overheating. 01372_ Lgt. Ion Engine destroyed. 01375_ G-47 Trooper destroyed. 01376_ Imp. Medium Laser destroyed. 01377_ Overheating: Matter decay (-36). 01378_ W-25 Informer sends out distress signal. 01382_ Beam Rifle destroyed. 01385_ Aluminum Leg destroyed. 01385_ K-01 Serf collects debris. 01386_ Acquired Imp. Signal Interpreter. 01387_ Sml. Storage Unit destroyed. 01388_ K-01 Serf collects debris. Map ----- +----------------------------------------------------+ | | | | | | | | | | | ????????????????????????????????????????????? | | ????????????????????????????????????????????? | | ????????????????????????????????????????????? | | ????????????????????????????????????????????? | | ????????????????????????????????????????????? | | ????????? ????????????????????????????????? | | ?????????? ????????????????????????????????? | | ?????????? ????????????????????????????????? | | ????????? #####???????????????????????????? | | ?????????? ###+#???????????????????????? | | ??????????# #???????????????????????? | | ??????????# #???????????????????????? | | ??????????# #???????????????????????? | | ??????????# #???????????????????????? | | ??????????+ ##??????????????????????? | | ??????????# " " !!"#??????????????????????? | | ??????????# "G" !!T#??????????????????????? | | ??????????# " "#??##+##???????????????? | | ??????????# ##### k###+###?????????? | | ??????????# T +?????????? | | ??????????# ##########@ ### #???????????? | | ??????????# ####????????#####???????????????? | | ??????????# #???????????????????????????????? | | ??????????# #???????????????????????????????? | | ???????####/#####???????????????????????????? | | ???????# !!!#?????????????? ????????????? | | ???????#""" !!!#?????????????? ???????????? | | ???????#""" !!=#??????????????T ???????????? | | ???????#""" ! #?????????????? ???????????? | | ???????# #??#??????????? ???????????? | | ???????#""" !#??# ?????????# #???????????? | | ???????#""" #??# ????????# #???????????? | | ???????#""" % #??? ???????# #?####+###### | | ???????# % !#????? ??????# #?# # | | ???????#####/####????###+###??# #?# # | | ########## % ####### #### ### # | | =!= # # | | T % =%=% + # | | [! % !% %=% =% # # | | ######+###=%* ####### =##### ## # | | ?????????###+###?????## ##???# ## # | | ?????????? ???????# #????#+#######+###? | | ????????# ?????# #????????????# #??? | | ????????# #????# +????????????# #??? | | ????????# !=! #????# #????????????# #??? | +----------------------------------------------------+ Best States ------------- Heat Dissipation 68 Energy Generation 14 Energy Capacity 250 Matter Stores 300 Matter Capacity 300 Sight Range 16 Terrain Scan Density 10 Armor Coverage 150 Resistance: TH 10 Evasion (%) 59 Item Schematics ----------------- None Robot Schematics ------------------ None Fabricated ------------ Nothing Alien Tech Used ----------------- None Achievements -------------- None Challenges ------------ None Game ------ Seed AlloyRecyclingReactor Manual? 0 Play Time 00:25:19 Cumulative 44.4 hours Start 2023.05.06 @ 12:25:51 End 2023.05.06 @ 12:46:56 Sessions 1 Manual Loads 0 Difficulty Rogue Special Mode None Game No. 59 Rogue 43 Adventurer 9 Explorer 7 Win Type - Total 3 Types 3/0/0/0/0/0/0/0/0 Lore% 13 Gallery% 36 Achievement% 28 Wizard Run 0 Options --------- ASCII 0 Keyboard 0 Movement Mouse Keybinds 0 Fullscreen 1 Font 32/Terminus Map View 63x52 Tactical HUD 1 Map Filters NONE Filters NONE Steam X RUN: b067a17d-ae52-469b-afbb-d70cc0b85b2f